[Event "Redbull chessmasters 2019"]
[Site "Istambul"]
[Date "2019.11.24"]
[Round "6.5"]
[White "Alaz, Ahmet Efekan"]
[Black "Inan, Canberk"]
[Result "1-0"]
[ECO "D05"]
[WhiteElo "2288"]
[BlackElo "1941"]
[Annotator "NA"]
[PlyCount "117"]
[EventDate "2019.11.23"]
[EventType "k.o."]
[EventCountry "TUR"]
[SourceTitle "playchess.com"]
[Source "ChessBase"]
[SourceQuality "1"]
[TimeControl "600+5"]

1. d4 Nf6 2. Nf3 e6 3. e3 d5 4. Bd3 Bd6 5. Nbd2 O-O 6. O-O c5 7. b3 Nc6 8. Bb2 Qc7 9. a3 e5 10. dxc5 Bxc5 11. e4 Be6 12. exd5 Bxd5 13. Ng5 Rad8 {[%emt 0:05:27]} 14. Re1 {[%emt 0:09:46]} h6 {[%emt 0:00:50]} 15. Nge4 {[%emt 0:00:32]} Nxe4 {[%emt 0:00:45]} 16. Nxe4 {[%emt 0:00:03]} Be7 {[%emt 0:02:03]} 17. Nc3 {[%emt 0:00:47]} Be6 {[%emt 0:01:04]} 18. Qe2 {[%emt 0:00:04]} Nd4 {[%emt 0:00:31]} 19. Qxe5 {[%emt 0:00:07]} Bd6 {[%emt 0:00:02]} 20. Qh5 {[%emt 0:00:11]} Bf4 {[%emt 0:00:33]} 21. Nb5 {[%emt 0:00:07]} Nxb5 {[%emt 0:00:09]} 22. Qxb5 {[%emt 0:00:05]} Bxh2+ {[%emt 0:00:00]} 23. Kf1 {[%emt 0:00:03]} a6 {[%emt 0:00:09]} 24. Qb4 {[%emt 0:00:01]} Bd6 {[%emt 0:00:12]} 25. Qe4 {[%emt 0:00:02]} Rfe8 {[%emt 0:00:14]} 26. Qh7+ {[%emt 0:00:05]} Kf8 {[%emt 0:00:05]} 27. Qxg7+ {[%emt 0:00:05]} Ke7 {[%emt 0:00:00]} 28. Bf6+ {[%emt 0:00:14]} Kd7 {[%emt 0:00:00]} 29. Bxd8 {[%emt 0:00:05]} Qxd8 {[%emt 0:00:00]} 30. Qd4 {[%emt 0:00:07]} Qc7 {[%emt 0:00:09]} 31. Rad1 {[%emt 0:00:02]} Kc8 {[%emt 0:00:05]} 32. Bxa6 {[%emt 0:00:05]} Bc5 {[%emt 0:00:05]} 33. Bxb7+ {[%emt 0:00:05]} Kxb7 {[%emt 0:00:05]} 34. Qe4+ {[%emt 0:00:05]} Kb8 {[%emt 0:00:05]} 35. b4 {[%emt 0:00:05]} Ba7 {[%emt 0:00:05]} 36. Kg1 {[%emt 0:00:05]} h5 {[%emt 0:00:05]} 37. c4 {[%emt 0:00:05]} h4 {[%emt 0:00:05]} 38. Qxh4 {[%emt 0:00:05]} Rg8 {[%emt 0:00:05]} 39. c5 {[%emt 0:00:05]} Qc6 {[%emt 0:00:05]} 40. Rd8+ {[%emt 0:00:05]} Rxd8 {[%emt 0:00:05]} 41. Qxd8+ {[%emt 0:00:05]} Kb7 {[%emt 0:00:05]} 42. Qe7+ {[%emt 0:00:00]} Ka6 {[%emt 0:00:01]} 43. Rd1 {[%emt 0:00:00]} Bb8 {[%emt 0:00:01]} 44. Qd8 {[%emt 0:00:09]} Bc7 {[%emt 0:00:05]} 45. Qd3+ {[%emt 0:00:01]} Ka7 {[%emt 0:00:08]} 46. Qf3 {[%emt 0:00:11]} Qa4 {[%emt 0:00:16]} 47. Rb1 {[%emt 0:00:05]} Qc2 {[%emt 0:00:05]} 48. Qd1 {[%emt 0:00:02]} Qc4 {[%emt 0:00:08]} 49. a4 {[%emt 0:00:05]} Bf5 {[%emt 0:00:03]} 50. Rb2 {[%emt 0:00:02]} Qc3 {[%emt 0:00:04]} 51. Rb3 {[%emt 0:00:04]} Qc4 {[%emt 0:00:05]} 52. Rb2 {[%emt 0:00:08]} Qc3 {[%emt 0:00:02]} 53. Rb3 {[%emt 0:00:03]} Qc4 {[%emt 0:00:02]} 54. b5 {[%emt 0:00:00]} Qxc5 {[%emt 0:00:04]} 55. Qd2 {[%emt 0:00:05]} Qc4 {[%emt 0:00:05]} 56. Rc3 {[%emt 0:00:01]} Qxa4 {[%emt 0:00:16]} 57. Rxc7+ {[%emt 0:00:05]} Kb6 {[%emt 0:00:05]} 58. Qd6+ {[%emt 0:00:00]} Kxb5 {[%emt 0:00:02]} 59. Qc5+ {[%emt 0:00:01]} 1-0

[Event "Redbull chessmasters 2019"]
[Site "Istambul"]
[Date "2019.11.24"]
[Round "6.6"]
[White "Ozdemir, Serhan Berat"]
[Black "Cingoz, Ozan"]
[Result "0-1"]
[ECO "B78"]
[WhiteElo "2096"]
[BlackElo "2031"]
[Annotator "NA"]
[PlyCount "66"]
[EventDate "2019.11.23"]
[EventType "k.o."]
[EventCountry "TUR"]
[SourceTitle "playchess.com"]
[Source "ChessBase"]
[SourceQuality "1"]
[TimeControl "600+5"]

1. e4 c5 2. Nf3 d6 3. d4 cxd4 4. Nxd4 Nf6 5. Nc3 g6 6. Be3 Bg7 7. f3 O-O 8. Qd2 Nc6 9. Bc4 Bd7 10. O-O-O Rc8 11. Bb3 Nxd4 12. Bxd4 b5 13. Nd5 Nxd5 14. Bxg7 Kxg7 15. exd5 a5 16. a3 b4 17. axb4 axb4 18. Qxb4 Rc5 19. Kd2 Qc7 20. Ke2 Rb8 21. Qd4+ Kg8 22. g4 Bb5+ 23. Kf2 Bc4 {[%emt 0:04:29]} 24. Rhe1 {[%emt 0:10:45]} Bxb3 {[%emt 0:00:05]} 25. cxb3 {[%emt 0:00:05]} Rxb3 {[%emt 0:00:09]} 26. Kg3 {[%emt 0:00:55]} Rc4 {[%emt 0:02:01]} 27. Qd2 {[%emt 0:00:23]} Rc2 {[%emt 0:00:08]} 28. Qg5 {[%emt 0:00:02]} f6 {[%emt 0:00:35]} 29. Qf4 {[%emt 0:00:06]} Rbxb2 {[%emt 0:00:06]} 30. Qe4 {[%emt 0:00:01]} Rg2+ {[%emt 0:00:03]} 31. Kf4 {[%emt 0:00:01]} Kf8 {[%emt 0:02:34]} 32. h4 {[%emt 0:00:08]} Rgc2 {[%emt 0:00:12]} 33. Rd4 {[%emt 0:00:11]} e5+ {[%emt 0:00:32]} 0-1

[Event "Redbull chessmasters 2019"]
[Site "Istambul"]
[Date "2019.11.24"]
[Round "6.7"]
[White "Can, Melih Kaan"]
[Black "Ozsakallioglu, Okan"]
[Result "1-0"]
[ECO "B40"]
[WhiteElo "2138"]
[BlackElo "2072"]
[Annotator "NA"]
[PlyCount "111"]
[EventDate "2019.11.23"]
[EventType "k.o."]
[EventCountry "TUR"]
[SourceTitle "playchess.com"]
[Source "ChessBase"]
[SourceQuality "1"]
[TimeControl "600+5"]

1. e4 c5 2. Nf3 e6 3. c3 Nf6 4. Bd3 Nc6 5. Bc2 d5 6. e5 Nd7 7. d4 cxd4 8. cxd4 b6 9. a3 Ba6 10. Nc3 Be7 11. Ne2 g5 12. Be3 g4 13. Nd2 Bg5 14. O-O Rc8 15. Re1 Bxe3 16. fxe3 Qg5 17. Nc3 {[%emt 0:07:07]} h5 {[%emt 0:07:42]} 18. Nf1 {[%emt 0:00:05]} Bxf1 {[%emt 0:00:05]} 19. Kxf1 {[%emt 0:00:05]} f6 {[%emt 0:00:05]} 20. exf6 {[%emt 0:00:05]} Nxf6 {[%emt 0:00:05]} 21. Kg1 {[%emt 0:00:03]} g3 {[%emt 0:00:32]} 22. h3 {[%emt 0:00:22]} Ng4 {[%emt 0:00:02]} 23. hxg4 {[%emt 0:03:07]} hxg4 {[%emt 0:00:01]} 24. Qd3 {[%emt 0:00:02]} Rh6 {[%emt 0:01:35]} 25. Kf1 {[%emt 0:00:06]} Qf6+ {[%emt 0:00:29]} 26. Ke2 {[%emt 0:00:02]} Qf2+ {[%emt 0:00:00]} 27. Kd1 {[%emt 0:00:01]} Qxg2 {[%emt 0:00:01]} 28. Kc1 {[%emt 0:00:40]} Ke7 {[%emt 0:00:39]} 29. Kb1 {[%emt 0:00:03]} Na5 {[%emt 0:00:16]} 30. Ka2 {[%emt 0:00:15]} Rh2 {[%emt 0:00:10]} 31. Re2 {[%emt 0:00:01]} Qf3 {[%emt 0:00:00]} 32. Rxh2 {[%emt 0:00:19]} gxh2 {[%emt 0:00:04]} 33. Qh7+ {[%emt 0:00:00]} Kd8 {[%emt 0:00:37]} 34. Qxh2 {[%emt 0:00:04]} Nc4 {[%emt 0:00:05]} 35. Bb3 {[%emt 0:00:05]} g3 {[%emt 0:00:05]} 36. Qh4+ {[%emt 0:00:05]} Kd7 {[%emt 0:00:05]} 37. Bxc4 {[%emt 0:00:05]} Rxc4 {[%emt 0:00:05]} 38. Rh1 {[%emt 0:00:20]} g2 {[%emt 0:00:17]} 39. Qh7+ {[%emt 0:00:05]} Kc6 {[%emt 0:00:05]} 40. Rc1 {[%emt 0:00:05]} Qxe3 {[%emt 0:00:08]} 41. Rb1 {[%emt 0:00:07]} g1=Q {[%emt 0:00:00]} 42. Rxg1 {[%emt 0:00:06]} Qxg1 {[%emt 0:00:03]} 43. Qe7 {[%emt 0:00:03]} Qxd4 {[%emt 0:00:05]} 44. Qxe6+ {[%emt 0:00:05]} Kb7 {[%emt 0:00:00]} 45. Nxd5 {[%emt 0:00:02]} Rc2 {[%emt 0:00:08]} 46. Qd7+ {[%emt 0:00:05]} Ka6 {[%emt 0:00:00]} 47. Nc7+ {[%emt 0:00:00]} Rxc7 {[%emt 0:00:00]} 48. Qxd4 {[%emt 0:00:03]} Kb7 {[%emt 0:00:04]} 49. a4 {[%emt 0:00:05]} a5 {[%emt 0:00:05]} 50. Qd5+ {[%emt 0:00:05]} Ka7 {[%emt 0:00:05]} 51. Kb3 {[%emt 0:00:00]} Ka6 {[%emt 0:00:03]} 52. Qa8+ {[%emt 0:00:06]} Ra7 {[%emt 0:00:01]} 53. Qc8+ {[%emt 0:00:00]} Rb7 {[%emt 0:00:00]} 54. Kc4 {[%emt 0:00:00]} Ka7 {[%emt 0:00:01]} 55. Kb5 {[%emt 0:00:04]} Re7 {[%emt 0:00:07]} 56. Qa6+ {[%emt 0:00:02]} 1-0

[Event "Redbull chessmasters 2019"]
[Site "Istambul"]
[Date "2019.11.24"]
[Round "6.8"]
[White "Duru, Ipek"]
[Black "Yanik, Sural Emine"]
[Result "1-0"]
[ECO "B01"]
[WhiteElo "1566"]
[BlackElo "1834"]
[Annotator "NA"]
[PlyCount "74"]
[EventDate "2019.11.23"]
[EventType "k.o."]
[EventCountry "TUR"]
[SourceTitle "playchess.com"]
[Source "ChessBase"]
[SourceQuality "1"]
[TimeControl "600+5"]

1. e4 d5 2. exd5 Qxd5 3. d4 Nc6 4. Be3 e5 5. Ne2 Bg4 6. f3 Bf5 7. Nbc3 Bb4 8. a3 Bxc3+ 9. Nxc3 Qd7 10. d5 Nce7 11. Bb5 c6 12. dxc6 bxc6 13. Qxd7+ Bxd7 14. Ba4 Nf6 15. O-O-O h6 16. Ne4 Nxe4 17. fxe4 {[%emt 0:03:59]} Nc8 {[%emt 0:10:24]} 18. Bc5 {[%emt 0:00:05]} Nb6 {[%emt 0:00:05]} 19. Bb3 {[%emt 0:00:05]} Rb8 {[%emt 0:00:05]} 20. Bxb6 {[%emt 0:00:05]} axb6 {[%emt 0:00:05]} 21. Bxf7+ {[%emt 0:00:05]} Kxf7 {[%emt 0:00:05]} 22. Rxd7+ {[%emt 0:00:05]} Kg8 {[%emt 0:00:05]} 23. Re7 {[%emt 0:00:05]} Rf8 {[%emt 0:00:05]} 24. Rxe5 {[%emt 0:00:05]} Rf2 {[%emt 0:00:05]} 25. Re6 {[%emt 0:00:05]} Rxg2 {[%emt 0:00:05]} 26. Rxc6 {[%emt 0:00:05]} Kh7 {[%emt 0:00:03]} 27. Rxb6 {[%emt 0:00:07]} Re8 {[%emt 0:00:05]} 28. Rb4 {[%emt 0:00:05]} Rd8 {[%emt 0:00:04]} 29. h3 {[%emt 0:00:03]} Rdd2 {[%emt 0:00:05]} 30. Rc4 {[%emt 0:00:27]} Rge2 {[%emt 0:00:17]} 31. b4 {[%emt 0:00:02]} Rd8 {[%emt 0:00:02]} 32. a4 {[%emt 0:00:12]} Rf8 {[%emt 0:00:24]} 33. b5 {[%emt 0:00:29]} Rf3 {[%emt 0:00:08]} 34. Kb2 {[%emt 0:00:26]} Ree3 {[%emt 0:00:26]} 35. b6 {[%emt 0:00:13]} Rf7 {[%emt 0:00:17]} 36. a5 {[%emt 0:00:05]} Rb7 {[%emt 0:00:05]} 37. Rc7 {[%emt 0:00:05]} Rb8 {[%emt 0:00:05]} 1-0

[Event "Redbull chessmasters 2019"]
[Site "Istambul"]
[Date "2019.11.24"]
[Round "6.9"]
[White "Ererdem, Gani Eren"]
[Black "Tasdogen, Dincer"]
[Result "0-1"]
[ECO "E11"]
[WhiteElo "2105"]
[BlackElo "2301"]
[Annotator "NA"]
[PlyCount "98"]
[EventDate "2019.11.23"]
[EventType "k.o."]
[EventCountry "TUR"]
[SourceTitle "playchess.com"]
[Source "ChessBase"]
[SourceQuality "1"]
[TimeControl "600+5"]

1. d4 Nf6 2. Nf3 e6 3. c4 Bb4+ 4. Nbd2 O-O 5. a3 Be7 6. e4 d6 7. Be2 Re8 8. O-O Bf8 9. Qc2 e5 10. d5 a5 11. b3 g6 12. Nb1 Nh5 13. Nc3 Nf4 14. Bxf4 exf4 15. b4 Bg7 16. Rab1 g5 17. h3 Nd7 18. Nb5 h5 {[%emt 0:04:25]} 19. Nd2 {[%emt 0:10:08]} Nf6 {[%emt 0:01:23]} 20. c5 {[%emt 0:00:02]} dxc5 {[%emt 0:01:28]} 21. Qxc5 {[%emt 0:00:21]} c6 {[%emt 0:00:19]} 22. Nc3 {[%emt 0:00:41]} Nd7 {[%emt 0:00:21]} 23. Qc4 {[%emt 0:00:16]} Ne5 {[%emt 0:00:01]} 24. Qb3 {[%emt 0:00:04]} g4 {[%emt 0:00:01]} 25. hxg4 {[%emt 0:00:06]} hxg4 {[%emt 0:00:02]} 26. Rfd1 {[%emt 0:00:23]} Qh4 {[%emt 0:00:10]} 27. Na4 {[%emt 0:00:08]} axb4 {[%emt 0:00:20]} 28. axb4 {[%emt 0:00:04]} cxd5 {[%emt 0:01:14]} 29. Nb6 {[%emt 0:00:02]} Rb8 {[%emt 0:00:48]} 30. Nxc8 {[%emt 0:00:12]} Rbxc8 {[%emt 0:00:05]} 31. g3 {[%emt 0:00:02]} fxg3 {[%emt 0:00:16]} 32. Qxg3 {[%emt 0:00:00]} Qxg3+ {[%emt 0:00:19]} 33. fxg3 {[%emt 0:00:03]} d4 {[%emt 0:00:05]} 34. Nb3 {[%emt 0:00:05]} Red8 {[%emt 0:00:05]} 35. Nc5 {[%emt 0:00:05]} Bh6 {[%emt 0:00:05]} 36. Nd3 {[%emt 0:00:05]} Be3+ {[%emt 0:00:05]} 37. Kf1 {[%emt 0:00:05]} Nf3 {[%emt 0:00:05]} 38. Kg2 {[%emt 0:00:05]} Rc2 {[%emt 0:00:05]} 39. Rb2 {[%emt 0:00:05]} Rdc8 {[%emt 0:00:05]} 40. Rdb1 {[%emt 0:00:05]} Nd2 {[%emt 0:00:05]} 41. Rxc2 {[%emt 0:00:05]} Rxc2 {[%emt 0:00:43]} 42. Rb2 {[%emt 0:00:10]} Rc3 {[%emt 0:00:05]} 43. Nc5 {[%emt 0:00:05]} Rc1 {[%emt 0:00:05]} 44. Bxg4 {[%emt 0:00:06]} b6 {[%emt 0:00:14]} 45. Nd3 {[%emt 0:00:05]} Rg1+ {[%emt 0:00:01]} 46. Kh3 {[%emt 0:00:03]} Nxe4 {[%emt 0:00:01]} 47. Rg2 {[%emt 0:00:08]} Rh1+ {[%emt 0:00:05]} 48. Rh2 {[%emt 0:00:05]} Ng5+ {[%emt 0:00:00]} 49. Kg2 {[%emt 0:00:04]} Rg1# {[%emt 0:00:00]} 0-1

[Event "Redbull chessmasters 2019"]
[Site "Istambul"]
[Date "2019.11.24"]
[Round "6.10"]
[White "Burcu, Cagatay"]
[Black "Olcum, Ahmet"]
[Result "1-0"]
[ECO "A41"]
[WhiteElo "2331"]
[BlackElo "2303"]
[Annotator "NA"]
[PlyCount "73"]
[EventDate "2019.11.23"]
[EventType "k.o."]
[EventCountry "TUR"]
[SourceTitle "playchess.com"]
[Source "ChessBase"]
[SourceQuality "1"]
[TimeControl "600+5"]

1. d4 d6 2. Bf4 g6 3. Nc3 Nd7 4. Nf3 Bg7 5. e4 e5 6. dxe5 dxe5 7. Bg5 Ngf6 8. Qd2 O-O 9. O-O-O Re8 10. h4 c6 11. h5 b5 12. hxg6 hxg6 13. Bh6 Bh8 14. Bd3 Nc5 15. Rh4 Nxd3+ 16. cxd3 b4 17. Ne2 Ba6 18. Kb1 c5 19. Nc1 {[%emt 0:04:23]} Qd7 {[%emt 0:10:09]} 20. Rdh1 {[%emt 0:00:25]} Rad8 {[%emt 0:00:18]} 21. Bf8 {[%emt 0:00:13]} Nh5 {[%emt 0:00:36]} 22. Rxh5 {[%emt 0:02:26]} gxh5 {[%emt 0:00:05]} 23. Rxh5 {[%emt 0:00:00]} Bxd3+ {[%emt 0:00:14]} 24. Ka1 {[%emt 0:00:01]} Kxf8 {[%emt 0:00:30]} 25. Rxh8+ {[%emt 0:00:02]} Ke7 {[%emt 0:00:01]} 26. Rxe8+ {[%emt 0:01:01]} Kxe8 {[%emt 0:00:04]} 27. Nxe5 {[%emt 0:00:05]} Qd4 {[%emt 0:00:07]} 28. Nc6 {[%emt 0:00:15]} Qxe4 {[%emt 0:00:05]} 29. Nxd8 {[%emt 0:00:05]} Ba6 {[%emt 0:00:08]} 30. f3 {[%emt 0:01:31]} Qe7 {[%emt 0:00:06]} 31. Nc6 {[%emt 0:00:09]} Qc7 {[%emt 0:00:05]} 32. Qe3+ {[%emt 0:00:02]} Kd7 {[%emt 0:00:05]} 33. Ne5+ {[%emt 0:00:11]} Kc8 {[%emt 0:00:00]} 34. Nb3 {[%emt 0:00:10]} c4 {[%emt 0:00:02]} 35. Nc5 {[%emt 0:00:10]} Bb5 {[%emt 0:00:02]} 36. Qd4 {[%emt 0:00:32]} Qe7 {[%emt 0:00:05]} 37. Ne4 {[%emt 0:00:10]} 1-0

[Event "Redbull chessmasters 2019"]
[Site "Istambul"]
[Date "2019.11.24"]
[Round "6.11"]
[White "Isik, Esref"]
[Black "Yazici, Ugur Doga"]
[Result "0-1"]
[ECO "C58"]
[WhiteElo "1920"]
[BlackElo "2195"]
[Annotator "NA"]
[PlyCount "60"]
[EventDate "2019.11.23"]
[EventType "k.o."]
[EventCountry "TUR"]
[SourceTitle "playchess.com"]
[Source "ChessBase"]
[SourceQuality "1"]
[TimeControl "600+5"]

1. e4 e5 2. Nf3 Nc6 3. Bc4 Nf6 4. Ng5 d5 5. exd5 Na5 6. Bb5+ c6 7. dxc6 bxc6 8. Qf3 Be7 9. Bxc6+ Nxc6 10. Qxc6+ Bd7 11. Qc3 O-O 12. d3 Nd5 13. Qxe5 Nb4 14. Qe4 Bxg5 15. Bxg5 Qxg5 16. O-O Bc6 17. h4 Qc5 18. Qe2 Rfe8 19. Qd2 Nxc2 {[%emt 0:04:25]} 20. Rc1 {[%emt 0:09:28]} Qd5 {[%emt 0:00:05]} 21. f3 {[%emt 0:00:05]} Nxa1 {[%emt 0:00:05]} 22. Nc3 {[%emt 0:00:05]} Qd4+ {[%emt 0:00:05]} 23. Kf1 {[%emt 0:00:05]} Qxh4 {[%emt 0:00:05]} 24. Ne2 {[%emt 0:00:05]} Bxf3 {[%emt 0:01:40]} 25. gxf3 {[%emt 0:00:07]} Rxe2 {[%emt 0:00:45]} 26. Kxe2 {[%emt 0:00:24]} Re8+ {[%emt 0:00:05]} 27. Qe3 {[%emt 0:00:51]} Rxe3+ {[%emt 0:00:09]} 28. Kxe3 {[%emt 0:00:00]} Qg5+ {[%emt 0:00:16]} 29. f4 {[%emt 0:00:01]} Qg3+ {[%emt 0:00:01]} 30. Ke4 {[%emt 0:00:04]} f5+ {[%emt 0:00:05]} 0-1

[Event "Redbull chessmasters 2019"]
[Site "Istambul"]
[Date "2019.11.24"]
[Round "6.12"]
[White "Aydin, Leyla"]
[Black "Gur, Tuba"]
[Result "0-1"]
[ECO "B12"]
[WhiteElo "1333"]
[BlackElo "1782"]
[Annotator "NA"]
[PlyCount "90"]
[EventDate "2019.11.23"]
[EventType "k.o."]
[EventCountry "TUR"]
[SourceTitle "playchess.com"]
[Source "ChessBase"]
[SourceQuality "1"]
[TimeControl "600+5"]

1. e4 c6 2. d4 d5 3. e5 Bf5 4. Nc3 e6 5. Nf3 h6 6. Be3 Nd7 7. Bd3 Bg4 8. Be2 c5 9. h3 Bh5 10. Bb5 c4 11. O-O Ne7 12. Ne2 Bxf3 13. gxf3 Nf5 14. Bf4 a6 15. Bxd7+ Qxd7 16. Ng3 g6 17. Nxf5 gxf5 18. Kh1 Be7 19. Bg3 h5 20. f4 Qd8 21. Rg1 Qb6 22. b3 Rc8 23. f3 {[%emt 0:07:37]} Bb4 {[%emt 0:06:51]} 24. Bf2 {[%emt 0:00:05]} Qc7 {[%emt 0:00:42]} 25. a3 {[%emt 0:00:37]} Be7 {[%emt 0:00:05]} 26. b4 {[%emt 0:00:05]} a5 {[%emt 0:00:10]} 27. c3 {[%emt 0:00:23]} Qc6 {[%emt 0:01:26]} 28. Rg2 {[%emt 0:00:36]} Kd7 {[%emt 0:00:23]} 29. Qc2 {[%emt 0:00:07]} axb4 {[%emt 0:00:17]} 30. axb4 {[%emt 0:00:09]} Ra8 {[%emt 0:00:01]} 31. Rgg1 {[%emt 0:00:02]} Ra6 {[%emt 0:00:33]} 32. Kh2 {[%emt 0:01:12]} Rha8 {[%emt 0:00:08]} 33. Rxa6 {[%emt 0:00:22]} Rxa6 {[%emt 0:00:14]} 34. Qb2 {[%emt 0:00:05]} Qa4 {[%emt 0:00:00]} 35. Rc1 {[%emt 0:00:41]} Qb3 {[%emt 0:01:09]} 36. Qxb3 {[%emt 0:00:31]} cxb3 {[%emt 0:00:05]} 37. Rb1 {[%emt 0:00:05]} Ra2 {[%emt 0:00:05]} 38. Kg3 {[%emt 0:00:05]} b2 {[%emt 0:00:05]} 39. Be3 {[%emt 0:00:05]} h4+ {[%emt 0:00:35]} 40. Kf2 {[%emt 0:00:24]} Kc6 {[%emt 0:00:05]} 41. Ke2 {[%emt 0:00:05]} Kb5 {[%emt 0:00:05]} 42. Kd3 {[%emt 0:00:05]} Ka4 {[%emt 0:00:05]} 43. Bd2 {[%emt 0:00:05]} Kb3 {[%emt 0:00:04]} 44. Bc1 {[%emt 0:00:08]} Ka3 {[%emt 0:00:13]} 45. Bd2 {[%emt 0:00:05]} Ra1 {[%emt 0:00:02]} 0-1

[Event "Redbull chessmasters 2019"]
[Site "Istambul"]
[Date "2019.11.24"]
[Round "6.13"]
[White "Kilic, Ihsan"]
[Black "Ozenir, Ekin Baris"]
[Result "0-1"]
[ECO "A46"]
[WhiteElo "1941"]
[BlackElo "2274"]
[Annotator "NA"]
[PlyCount "56"]
[EventDate "2019.11.23"]
[EventType "k.o."]
[EventCountry "TUR"]
[SourceTitle "playchess.com"]
[Source "ChessBase"]
[SourceQuality "1"]
[TimeControl "600+5"]

1. d4 Nf6 2. Nf3 e6 3. g3 b5 4. Bg2 Bb7 5. O-O Be7 6. b3 O-O 7. c4 bxc4 8. bxc4 c5 9. e3 Nc6 10. Nc3 cxd4 11. exd4 Na5 12. c5 d6 13. cxd6 Bxd6 14. Bg5 Be7 15. Rb1 Rc8 16. Na4 Be4 17. Rc1 Rxc1 18. Bxc1 Nc6 19. Be3 Bd5 20. Nc3 Qa5 21. Nxd5 Nxd5 22. Qd2 Qa3 23. Rb1 Ncb4 24. Ne5 Rc8 25. Rb2 {[%emt 0:11:10]} a5 {[%emt 0:03:34]} 26. Bf1 {[%emt 0:00:05]} Nxe3 {[%emt 0:00:05]} 27. fxe3 {[%emt 0:00:05]} Bg5 {[%emt 0:00:05]} 28. Kf2 {[%emt 0:00:05]} Bxe3+ {[%emt 0:00:05]} 0-1

[Event "Redbull chessmasters 2019"]
[Site "Istambul"]
[Date "2019.11.24"]
[Round "6.14"]
[White "Alak, Agdar"]
[Black "Cil, Batuhan"]
[Result "1-0"]
[ECO "A52"]
[WhiteElo "1482"]
[BlackElo "1737"]
[Annotator "NA"]
[PlyCount "125"]
[EventDate "2019.11.23"]
[EventType "k.o."]
[EventCountry "TUR"]
[SourceTitle "playchess.com"]
[Source "ChessBase"]
[SourceQuality "1"]
[TimeControl "600+5"]

1. d4 Nf6 2. c4 e5 3. dxe5 Ng4 4. Nf3 Bc5 5. e3 Nc6 6. Nc3 O-O 7. Be2 Ngxe5 8. O-O Re8 9. a3 a5 10. Na4 Ba7 11. Rb1 d6 12. b4 axb4 13. axb4 Nxf3+ 14. Bxf3 Ne5 15. Be2 Bd7 16. Nc3 f5 17. Nd5 c6 18. Nf4 Qe7 19. Bb2 Rad8 20. Qb3 Ra8 21. Qd1 Rad8 22. Qb3 Kh8 23. Nd3 {[%emt 0:06:24]} Ng4 {[%emt 0:09:00]} 24. Bxg4 {[%emt 0:00:05]} fxg4 {[%emt 0:00:05]} 25. Nf4 {[%emt 0:00:05]} Bf5 {[%emt 0:00:23]} 26. Ra1 {[%emt 0:00:16]} Bb8 {[%emt 0:00:12]} 27. Nh5 {[%emt 0:00:05]} Rg8 {[%emt 0:00:13]} 28. Qc3 {[%emt 0:01:05]} d5 {[%emt 0:00:17]} 29. Ng3 {[%emt 0:00:32]} Bg6 {[%emt 0:01:16]} 30. c5 {[%emt 0:00:20]} h5 {[%emt 0:00:09]} 31. Ne2 {[%emt 0:00:42]} Rdf8 {[%emt 0:00:16]} 32. g3 {[%emt 0:00:36]} Kh7 {[%emt 0:00:20]} 33. Nf4 {[%emt 0:00:05]} Bf7 {[%emt 0:00:19]} 34. Qc2+ {[%emt 0:00:03]} Qe4 {[%emt 0:00:10]} 35. Qxe4+ {[%emt 0:00:05]} dxe4 {[%emt 0:00:05]} 36. Rfd1 {[%emt 0:00:05]} g5 {[%emt 0:00:05]} 37. Ne2 {[%emt 0:00:05]} Bd5 {[%emt 0:00:05]} 38. Nc3 {[%emt 0:00:05]} Rf5 {[%emt 0:00:05]} 39. Nxd5 {[%emt 0:00:05]} cxd5 {[%emt 0:00:05]} 40. b5 {[%emt 0:00:05]} Rgf8 {[%emt 0:00:05]} 41. Rd2 {[%emt 0:00:05]} h4 {[%emt 0:00:05]} 42. c6 {[%emt 0:00:05]} bxc6 {[%emt 0:00:05]} 43. bxc6 {[%emt 0:00:05]} Rc8 {[%emt 0:00:05]} 44. Rc2 {[%emt 0:00:05]} h3 {[%emt 0:00:05]} 45. c7 {[%emt 0:00:05]} Rff8 {[%emt 0:00:05]} 46. cxb8=Q {[%emt 0:00:05]} Rxb8 {[%emt 0:00:05]} 47. Bd4 {[%emt 0:00:05]} Rb7 {[%emt 0:00:05]} 48. Kf1 {[%emt 0:00:05]} Rfb8 {[%emt 0:00:03]} 49. Rcc1 {[%emt 0:01:19]} Rb3 {[%emt 0:00:10]} 50. Ke2 {[%emt 0:00:15]} R8b5 {[%emt 0:00:06]} 51. Rc7+ {[%emt 0:00:12]} Kg8 {[%emt 0:00:05]} 52. Ra8+ {[%emt 0:00:05]} Rb8 {[%emt 0:00:00]} 53. Rxb8+ {[%emt 0:00:07]} Rxb8 {[%emt 0:00:06]} 54. Rc5 {[%emt 0:00:05]} Rb1 {[%emt 0:00:08]} 55. Rxd5 {[%emt 0:00:02]} Rh1 {[%emt 0:00:05]} 56. Rxg5+ {[%emt 0:00:05]} Kf7 {[%emt 0:00:00]} 57. Rxg4 {[%emt 0:00:00]} Rxh2 {[%emt 0:00:00]} 58. Rxe4 {[%emt 0:00:00]} Rh1 {[%emt 0:00:07]} 59. Rh4 {[%emt 0:00:03]} h2 {[%emt 0:00:03]} 60. Kf3 {[%emt 0:00:01]} Kg6 {[%emt 0:00:12]} 61. Kg2 {[%emt 0:00:03]} Rg1+ {[%emt 0:00:07]} 62. Kxh2 {[%emt 0:00:05]} Rf1 {[%emt 0:00:05]} 63. Kg2 {[%emt 0:00:00]} 1-0